Cogmind - Beta 13 @@@ ROGUE MODE // 2024.05.14 @ 06:29:39 Player: A Moose Result: Destroyed by NB-VU4(R) with Subdweller Beam Cannon Performance ------------- Evolutions (0) 0 Regions Visited (3) 600 Robots Destroyed (45) 225 Value Destroyed (892) 892 Prototype IDs (0) 0 Alien Tech Used (0) 0 Bonus (8) 8 TOTAL SCORE: 1725 Bonus ------- High Alert Combat Kills 8 Cogmind --------- Core Integrity 0/250 Matter 209/300 Energy 248/250 System Corruption 0% Temperature Cool (9) Movement Rolling (95) Ox1 Location -10/Subcaves Parts ------- > --- POWER (1) -------- Ion Engine > --- PROPULSION (2) --- Wheel Wheel > --- UTILITY (2) ------ Medium Storage Unit Weapon Shielding > --- WEAPON (2) ------- Grenade Launcher Grenade Launcher > --- INVENTORY (10) --- Light Ion Engine Wheel Wheel Medium Matter Pod (100) Medium Matter Pod (97) ECM Suite Hacking Suite Subdweller Machine Gun Rocket Launcher Peak State ------------ > --- POWER ------------ Ion Engine > --- PROPULSION ------- Wheel Wheel > --- UTILITY ---------- Medium Storage Unit Weapon Shielding > --- WEAPON ----------- Medium Laser Grenade Launcher > --- INVENTORY -------- Light Ion Engine Medium Matter Pod Medium Matter Pod ECM Suite Hacking Suite Medium Laser Grenade Launcher Grenade Launcher [Rating: 8] Favorites ----------- Power Ion Engine Engine Ion Engine Propulsion Wheel Wheel Wheel Utility Medium Storage Unit Device Heat Sink Storage Medium Storage Unit Protection Weapon Shielding Weapon Grenade Launcher Energy Gun Medium Laser Launcher Grenade Launcher Build | -11 -10 -10 -10 ------- Run | Yrd Mat Min Sub Slots Evolved . | . . . . Power . | . . . . Propulsion . | . . . . Utility . | . . . . Weapon . | . . . . Parts Attached 26 | 6 17 3 . Power 2 | 1 1 . . Engine 2 | 1 1 . . Core . | . . . . Reactor . | . . . . Propulsion 6 | 2 2 2 . Treads . | . . . . Leg . | . . . . Wheel 6 | 2 2 2 . Hover . | . . . . Flight . | . . . . Utility 4 | 1 3 . . Device 1 | . 1 . . Storage 2 | 1 1 . . Processor . | . . . . Hackware . | . . . . Protection 1 | . 1 . . Artifact . | . . . . Weapon 14 | 2 11 1 . Energy Gun 5 | 2 3 . . Energy Cannon . | . . . . Ballistic Gun . | . . . . Ballistic Cannon . | . . . . Launcher 9 | . 8 1 . Special Weapon . | . . . . Impact Weapon . | . . . . Slashing Weapon . | . . . . Piercing Weapon . | . . . . Special Melee Weapon . | . . . . Unidentified Prototypes . | . . . . Parts Lost 5 | . 5 . . Power 1 | . 1 . . Propulsion 2 | . 2 . . Utility . | . . . . Weapon 2 | . 2 . . Highest Loss Streak 1 | . 1 . . To Critical Strikes . | . . . . Average Slot Usage (%) 90 | . 83 100 100 Engine 13 | . 12 14 14 Wheel 23 | . 18 28 28 Device 4 | . 8 . . Storage 14 | . 14 14 14 Protection 7 | . 1 14 14 Energy Gun 6 | . 12 . . Launcher 20 | . 13 27 28 Naked Turns . | . . . . Heaviest Build 22 | 14 22 22 22 Greatest Support 26 | 26 26 20 20 Greatest Overweight (x) 5 | . 5 1 1 Average Overweight (x) . | . . 1 1 Largest Inventory Capacity 10 | 8 10 10 10 Average Capacity 9 | 5 8 10 10 Most Carried 10 | 5 9 10 10 Average Carried 8 | 1 7 9 9 Final Capacity 10 | 8 10 10 10 Final Carried 10 | 1 8 10 9 Class Distribution -------------------- 100% | Mutant Dominant Class ---------------- Mutant | -10/Materials Mutant | -10/Mines Mutant | -10/Subcaves Resources | -11 -10 -10 -10 ----------- Run | Yrd Mat Min Sub Matter Collected 1121 | 250 577 294 . Remotely . | . . . . Salvage Created 836 | . 761 75 . Parts 57 | . 47 10 . Haulers Intercepted 1 | . 1 . . Recyclers Shooed 2 | . 2 . . Parts Field Recycled . | . . . . Retrieved Matter . | . . . . Parts Self-Destructed 6 | . . . 6 Prevented . | . . . . Kills | -11 -10 -10 -10 ------- Run | Yrd Mat Min Sub Combat Hostiles Destroyed 29 | . 16 13 . Guns 9 | . 9 . . AOE 20 | . 7 13 . Classes Destroyed 10 | . 9 1 . Worker 6 | . 5 1 . Builder 2 | . 2 . . Tunneler 1 | . 1 . . Hauler 1 | . 1 . . Recycler 1 | . 1 . . Operator 4 | . 4 . . Watcher 3 | . 3 . . Swarmer 12 | . 3 9 . Grunt 15 | . 13 2 . Assembled 2 | . . 2 . Best Kill Streak 8 | . 8 5 . Combat Bots Only 5 | . 4 5 . Max Kills in Single Turn 3 | . 2 3 . Gunslinging 1 | . 1 . . Exploded 2 | . 1 2 . Melee . | . . . . Uniques/NPCs Destroyed . | . . . . Combat | -11 -10 -10 -10 -------- Run | Yrd Mat Min Sub Hostile Shots Fired 96 | . 76 19 1 Missed 41 | . 31 10 . Damage Taken 937 | . 655 257 25 Core 253 | . 153 75 25 Absorbed by Shields . | . . . . Redirected to Shielding 20 | . . 20 . Core Remaining (%) 100 | 100 . . . Volleys Fired 121 | . 108 13 . Largest 2 | . 2 2 . Hottest 100 | . 100 80 . Shots Fired 171 | . 145 26 . Gun 113 | . 111 2 . Cannon . | . . . . Launcher 58 | . 34 24 . Special . | . . . . Kinetic . | . . . . Thermal 113 | . 111 2 . Explosive 58 | . 34 24 . Electromagnetic . | . . . . Robot Hit Streak 11 | . 11 3 . Robot Miss Streak 3 | . 3 3 . Penetration Max . | . . . . Secondary Targets 1 | . 1 . . Max Gunslinging Chain 1 | . 1 . . Shots Hit Robots 99 | . 91 8 . Core Hits 78 | . 58 20 . Critical Kills . | . . . . Critical Parts Destroyed . | . . . . Critical Strikes 2 | . 2 . . Burn 2 | . 2 . . Melee Attacks . | . . . . Impact . | . . . . Slashing . | . . . . Piercing . | . . . . Sneak Attacks . | . . . . Combat Hostiles . | . . . . Follow-up Attacks . | . . . . Damage Inflicted 3085 | . 2098 987 . Guns 949 | . 949 . . Cannons . | . . . . Explosions 2136 | . 1149 987 . Melee . | . . . . Ramming . | . . . . Kinetic . | . . . . Thermal 969 | . 949 20 . Explosive 2116 | . 1149 967 . Electromagnetic . | . . . . Impact . | . . . . Slashing . | . . . . Piercing . | . . . . Highest Corruption . | . . . . Average Corruption . | . . . . Corruption Purged . | . . . . Corruption Blocked . | . . . . Overload Shots . | . . . . Overflow Damage 44 | . 22 22 . Projectiles . | . . . . Explosions 44 | . 22 22 . Melee . | . . . . Knockbacks . | . . . . Impact . | . . . . Kinetic . | . . . . Secondary . | . . . . Self-Inflicted Damage 330 | . 149 181 . Shots 14 | . 7 7 . Rammed . | . . . . Targets Rammed . | . . . . Kicked . | . . . . Crushed . | . . . . Highest Temperature 217 | . 217 36 . Average Temperature 62 | . 70 16 . Received Heat Transfer 297 | . 279 9 9 Siege Activations . | . . . . Robots Corrupted . | . . . . Combat Hostiles . | . . . . Parts Fried . | . . . . Impact Corruptions . | . . . . Robots Melted . | . . . . Combat Hostiles . | . . . . Parts Melted 4 | . 4 . . Heat Transferred 3010 | . 2960 50 . Parts Sabotaged . | . . . . Parts Stolen . | . . . . Parts Stripped . | . . . . Power Chain Reactions . | . . . . Alert | -11 -10 -10 -10 ------- Run | Yrd Mat Min Sub Peak Influence 461 | . 461 388 . Initial 127 | . . 127 . Average 288 | . 317 268 . Maximum Alert Level 2 | . 2 1 . Low Security (%) 15 | 100 10 16 . Level 1 72 | . 68 83 . Level 2 12 | . 21 . . Level 3 . | . . . . Level 4 . | . . . . Level 5 . | . . . . High Security . | . . . . Max Security . | . . . . Squads Dispatched 4 | . 4 . . Investigation 1 | . 1 . . Extermination . | . . . . Reinforcement 3 | . 3 . . Assault . | . . . . Garrison . | . . . . Intercept . | . . . . Searches Triggered . | . . . . Construction Impeded . | . . . . Haulers Reinforced . | . . . . Active Scanning Responses . | . . . . Cargo Convoy Interrupts . | . . . . Stealth | -11 -10 -10 -10 --------- Run | Yrd Mat Min Sub Distress Signals 5 | . 5 . . Communications Jammed . | . . . . Distress Signals . | . . . . Times Spotted 41 | . 28 11 2 Peak Tracking Total 5 | . 5 5 2 Tactical Retreats 1 | . 1 . . Traps | -11 -10 -10 -10 ------- Run | Yrd Mat Min Sub Traps Triggered 1 | . 1 . . Indirectly . | . . . . Trap Hack Attempts . | . . . . Triggered . | . . . . Disarmed . | . . . . Reprogrammed . | . . . . Reused . | . . . . Traps Extracted . | . . . . Installed . | . . . . Triggered . | . . . . Machines | -11 -10 -10 -10 ---------- Run | Yrd Mat Min Sub Machines Disabled 8 | . 2 6 . Max in Single Turn 3 | . 1 3 . Machines Repaired . | . . . . Machines Dismantled . | . . . . Machines Sabotaged . | . . . . Overloaded Fab Kills . | . . . . Hacking | -11 -10 -10 -10 --------- Run | Yrd Mat Min Sub Machines Accessed 3 | . 3 . . Terminals 3 | . 3 . . Fabricators . | . . . . Repair Stations . | . . . . Recycling Units . | . . . . Scanalyzers . | . . . . Garrison Access . | . . . . Total Hacks 7 | . 7 . . Successful 4 | . 4 . . Failed 3 | . 3 . . Catastrophic 1 | . 1 . . Database Lockouts . | . . . . Manual 10 | . 10 . . Terminals 7 | . 7 . . Fabricators . | . . . . Repair Stations . | . . . . Recycling Units . | . . . . Scanalyzers . | . . . . Garrison Access . | . . . . Terminal Hacks 4 | . 4 . . Robot Analysis 4 | . 4 . . Fabricator Hacks . | . . . . Repair Station Hacks . | . . . . Recycling Unit Hacks . | . . . . Scanalyzer . | . . . . Garrison Access Hacks . | . . . . Unauthorized Hacks . | . . . . Terminals . | . . . . Fabricators . | . . . . Repair Stations . | . . . . Recycling Units . | . . . . Scanalyzers . | . . . . Garrison Access . | . . . . Data Cores Recovered . | . . . . Used . | . . . . Hacking Detections 2 | . 2 . . Full Trace Events 1 | . 1 . . Feedback Events . | . . . . Feedback Blocked . | . . . . Robot Schematics Acquired . | . . . . Robots Built . | . . . . Authchips . | . . . . Time . | . . . . Total Robot Build Rating . | . . . . Part Schematics Acquired . | . . . . Parts Built . | . . . . Authchips . | . . . . Time . | . . . . Total Part Build Rating . | . . . . Parts Repaired . | . . . . Time . | . . . . Parts Recycled . | . . . . Recycled Matter . | . . . . Retrieved Matter . | . . . . Retrieved Components . | . . . . Parts Scanalyzed . | . . . . Part Schematics Acquired . | . . . . Parts Damaged . | . . . . Bothacking | -11 -10 -10 -10 ------------ Run | Yrd Mat Min Sub Used RIF Installer . | . . . . Robots Hacked . | . . . . Non-combat . | . . . . Combat . | . . . . Robot Hacks Applied . | . . . . Relay Couplers Released . | . . . . Fabnet Peak Effective % . | . . . . Robots Rewired . | . . . . Allies Hacked . | . . . . Hacks Repelled . | . . . . Allies | -11 -10 -10 -10 -------- Run | Yrd Mat Min Sub Total Allies . | . . . . Largest Group . | . . . . Highest-Rated Group . | . . . . Highest-Rated Ally . | . . . . Total Orders . | . . . . Ally Attacks . | . . . . Total Damage . | . . . . Kills . | . . . . Allies Corrupted . | . . . . Allies Melted . | . . . . Intel | -11 -10 -10 -10 ------- Run | Yrd Mat Min Sub Robot Analysis Total 4 | . 4 . . Derelict Logs Recovered 2 | . . 2 . Drone Launches . | . . . . Drone Recoveries . | . . . . Exploration | -11 -10 -10 -10 ------------- Run | Yrd Mat Min Sub Turns Passed 1809 | 47 950 678 134 Spaces Moved 1375 | 38 648 550 139 Core 14 | 1 13 . . Treads . | . . . . Legs . | . . . . Wheels 1361 | 37 635 550 139 Hover . | . . . . Flight . | . . . . Fastest Speed 50 | 50 80 95 95 Average Speed 95 | 90 97 95 95 Slowest Speed 300 | 100 300 95 95 Overloaded Moves . | . . . . Propulsion Burnouts . | . . . . Robots Hopped . | . . . . Cave-ins Triggered . | . . . . Exploration Rate (%) 50 | 4 85 100 12 Regions Visited 3 Branch Regions 2 Pre-discovered Areas 1 | . . 1 . Known Exits Taken . | . . . . Unknown Exits Taken 3 | 1 1 1 . Scrap Searched 1 | . . 1 . Spaces Dug 28 | . . 28 . Terrain Destroyed 322 | . 168 154 . Melee . | . . . . Projectile . | . . . . AOE 322 | . 168 154 . Terrain Rammed . | . . . . Walls Destroyed . | . . . . Machines Disabled . | . . . . Actions | -11 -10 -10 -10 --------- Run | Yrd Mat Min Sub Total 1693 | 50 820 681 142 Wait 139 | . 31 108 . Move 1372 | 37 647 549 139 Hop . | . . . . Pick Up 27 | 7 14 5 1 Fast Attach 3 | . 3 . . Attach 12 | 6 6 . . Detach . | . . . . Swap 11 | . 8 3 . Drop 8 | . 3 3 2 Fire 121 | . 108 13 . Melee . | . . . . Ram . | . . . . Kick . | . . . . Crush . | . . . . Escape Stasis . | . . . . Rewire . | . . . . Trap . | . . . . Miscellaneous . | . . . . Route ------- -11/Scrapyard -10/Materials (discovered 4 exits: [*Mat x3] / [*Min]) -10/Mines (discovered 3 exits: [*Mat x2] / [*Sub]) -10/Subcaves History --------- Turn | Location | Event 18 | -11/Scrapyard | Discovered new exit (range 16) 48 | -11/Scrapyard | Entered Materials 280 | -10/Materials | Discovered new exit (range 7) 301 | -10/Materials | Discovered new exit (range 16) 302 | -10/Materials | Build established: Mutant 608 | -10/Materials | Core integrity fell below 50% 841 | -10/Materials | Discovered new exit (range 10) 941 | -10/Materials | Discovered new exit (range 13) 998 | -10/Materials | Entered Mines 999 | -10/Mines | Assembled infested the area 1073 | -10/Mines | Learned location of Zion (-6) 1114 | -10/Mines | Discovered new exit (range 10) 1274 | -10/Mines | Received a Rocket Launcher from a helpful Derelict 1279 | -10/Mines | Learned Materials security intel 1535 | -10/Mines | Discovered new exit (range 9) 1565 | -10/Mines | Core integrity fell below 20% 1649 | -10/Mines | Discovered new exit (range 13) 1676 | -10/Mines | Entered Subcaves 1782 | -10/Subcaves | Shifting Twisted Machinery released Sub. Machine Gun 1790 | -10/Subcaves | Shifting Twisted Machinery released Sub. Machine Gun 1804 | -10/Subcaves | A swath of the cavern ceiling suddenly collapsed 1810 | -10/Subcaves | Destroyed by NB-VU4(R) with Subdweller Beam Cannon Last Messages --------------- Destroyed Flight Unit. S-10 Pest destroyed. U-05 Engineer lays Concrete. The unstable cave ceiling collapses. EXIT=FOUND T-07 Excavator is excavating. Acquired 53 matter. LOCATION=UNKNOWN AMBIENT_HEAT=-10 GOAL=ESCAPE RA-ZQX(u) builds Twisted Machinery. Sub. Machine Gun falls loose from the Twisted Machinery. Dropped Med. Laser. Acquired Sub. Machine Gun. Subatomizers dissect the Med. Laser, destroying it. Y-45 Defender crushed by falling debris. A swath of the cavern ceiling suddenly collapses. Map ----- +----------------------------------------------------+ | ??????????????????????????????????????????? | | ??????????????????????????????????????????? | | ??????????????????????????????????????????? | | ??????????????????????????????????????????? | | ??????????????????????????????????????????? | | ??????????????????????????????????????????? | | ??????????????????????????????????????????? | | ??????????????????????????????????????????? | | ??????????????????????????????????????????? | | ??????????????????????????????????????????? | | ??????????????????????????????????????????? | | ??????????????????????????????????????????? | | ??????????????????????????????????????????? | | ??????????????????????????????????????????? | | ??????????????????????#???????????????????? | | ?????????????????????""???????????????????? | | ??????????????????""" #???????????????????? | | ?????????????????#""" ##??????????????????? | | ??????????????????""" ####???????????????? | | ??????????????????""" "#???????????????? | | ??????????????????" #????????????????? | | ?????????????????? #????????????????? | | ?????????????????##R ??????????????????? | | ?????????????????# #???????????????????? | | ?????????????????# ##???????????????????? | | ????????????????##@ #???????????????????? | | ????????????????# ##???????????????????? | | ????????????????## #####???## #????????? | | ????????????????## ####### #?????????? | | ???????????????## ;"""# " #??????????? | | ???????????????#"" ;##"""#""" ????????????? | | ???????????????##" ;" ### """????????????? | | ???????????????##" #"##?????????????????? | | ???????????????#"" "##??????????????????? | | ???????????????##""" ##???????????????????? | | ????????????????#""" ###??????????????????? | | ????????????????#"""" ##?????????????????? | | ????????????????##""""[ ##????????????????? | | ???????????????##"""" ""##???????????????? | | ???????????????#"" " " #???????????????? | | ???????????????# "" ###" #???????????????? | | ???????????????# "" #?? ###???????????????? | | ???????????????# [" ##? "?????????????????? | | ???????????????# "" ## " ????????????????? | | ??????????????## "" ##"#"???????????????? | | ??????????????# "" #####??????????????? | | ??????????????## ##?????????????????? | | ???????????????## ###???????????????? | | ???????????????## ##??????????????? | | ???????????????# #??????????????? | +----------------------------------------------------+ Best States ------------- Heat Dissipation 35 Energy Generation 10 Energy Capacity 250 Matter Stores 300 Matter Capacity 300 Sight Range 16 Terrain Scan Density 10 Weapon Shielding 33 Evasion (%) 44 Item Schematics ----------------- None Robot Schematics ------------------ None Fabricated ------------ Nothing Alien Tech Used ----------------- None Achievements -------------- None Challenges ------------ None Game ------ Seed SmartbombDisruptorThrower Manual? 0 Play Time 00:14:41 Cumulative 100.0 hours Start 2024.05.14 @ 06:14:42 End 2024.05.14 @ 06:29:39 Sessions 1 Manual Loads 0 Difficulty Rogue Special Mode None Game No. 103 Rogue 94 Adventurer 9 Explorer 0 Win Type - Total 0 Types 0/0/0/0/0/0/0/0/0 Lore% 49 Gallery% 61 Achievement% 46 Wizard Run 0 Options --------- Layout 1 ASCII 0 Keyboard 0 Movement Numpad Keybinds 0 Fullscreen 1 Font 24/Smallcaps Map View 50x35 Zoom Use 0% Tactical HUD 0 Map Filters NONE Filters NONE Steam 1 RUN: 56eaaaca-33e7-4a6e-a069-7d52ce242d62